bitfinex-derivatives/quotes_SOLF0:USTF0_20241012
["timestamp","ask_amount","ask_price","bid_price","bid_amount"]
[1728691727235,8.41,146.02,145.97,14.55502]
[1728691727431,8.41,146.02,145.97,6.14502]
[1728691727728,3.4249,146.01,145.97,6.14502]
[1728691727926,11.8349,146.01,145.97,6.14502]
[1728691728524,11.8349,146.01,145.97,9.57072]
[1728691728825,3.4249,146.01,145.97,9.57072]
[1728691729719,3.4249,146.01,145.97,6.14502]
[1728691729926,3.4249,146.01,145.98,3.4255]
[1728691731138,3.4247,146.02,145.99,3.4253]
[1728691731833,11.8345,146.03,145.98,8.41]
[1728691732039,11.8345,146.03,146.0,3.4251]
[1728691733535,11.8345,146.03,145.99,3.4253]
[1728691736936,3.4247,146.02,145.99,3.4253]
[1728691747942,3.4242,146.04,146.01,11.8349]
[1728691751043,3.4242,146.04,146.01,3.4249]
[1728691751253,3.4242,146.04,146.0,13.21]
[1728691751542,8.41,146.17,146.03,73.87549497]
[1728691751742,8.41,146.17,146.11,8.41]
[1728691751947,89.11445235,146.2,146.11,8.41]
[1728691751948,3.4214,146.16,146.12,3.4223]
[1728691752142,8.41,146.17,146.12,3.4223]
[1728691752342,8.41,146.17,146.11,8.41]
[1728691752750,8.41,146.17,146.12,3.4223]
[1728691753248,3.4211,146.18,146.14,3.4218]
[1728691754256,3.4211,146.18,146.13,16.632]
[1728691755344,11.8314,146.16,146.13,4.8]
[1728691757850,11.8314,146.16,146.12,3.4222]
[1728691759653,8.41,146.17,146.11,13.21]
[1728691759849,3.54682,146.15,146.11,16.6325]
[1728691760657,3.4219,146.14,146.11,4.8]
[1728691763755,3.4219,146.14,146.12,8.41]
[1728691764463,0.12502,146.15,146.12,8.41]
[1728691764865,0.12502,146.15,146.13,8.41]
[1728691766662,0.12502,146.15,146.13,11.8321]
[1728691767061,0.12502,146.15,146.13,9.64]
[1728691770659,0.12502,146.15,146.13,1.23]
[1728691770865,3.54682,146.15,146.13,1.23]
[1728691771066,0.12502,146.15,146.13,1.23]
[1728691771367,11.8318,146.14,146.13,1.23]
[1728691776468,3.4225,146.12,146.09,13.21]
[1728691776668,3.4225,146.12,146.09,8.41]
[1728691777668,3.4221,146.13,146.09,8.41]
[1728691781872,8.41,146.14,146.09,8.41]
[1728691782074,11.832,146.14,146.09,8.41]
[1728691782266,11.832,146.14,146.1,3.4228]
[1728691784577,3.4221,146.13,146.1,3.4228]
[1728691785380,3.4221,146.13,146.09,8.41]
[1728691785584,3.4221,146.13,146.09,11.8329]
[1728691790482,8.41,146.14,146.09,11.8329]
[1728691790789,8.41,146.13,146.08,11.8332]
[1728691791490,3.4227,146.11,146.08,11.8332]
[1728691792886,8.41,146.12,146.05,1.3839]
[1728691793087,3.4229,146.1,146.07,3.4234]
[1728691793580,3.4229,146.1,146.07,8.4434]
[1728691794490,3.4226,146.11,146.08,11.8332]
[1728691809000,3.4228,146.1,146.07,3.4233]
[1728691809194,3.4228,146.1,146.07,8.3433]
[1728691811297,3.4228,146.1,146.07,4.92]
[1728691811501,3.423,146.09,146.07,4.92]
[1728691812002,8.41,146.11,146.07,4.92]
[1728691812402,3.4229,146.1,146.07,8.3433]
[1728691813205,8.41,146.11,146.07,4.92]
[1728691813402,3.4233,146.08,146.06,4.92]
[1728691814297,3.4239,146.05,146.04,1.2914]
[1728691814499,8.41,146.05,146.01,74.21303375]
[1728691814697,8.41,146.05,146.01,82.62303375]
[1728691815098,3.4241,146.05,146.01,86.04773375]
[1728691818600,3.4242,146.04,146.01,86.04773375]
[1728691826609,3.4242,146.04,146.01,16.7547]
[1728691828204,8.3439,146.06,146.01,13.33]
[1728691828410,8.3439,146.06,146.02,8.41]
[1728691829204,8.3439,146.06,146.02,11.8345]
[1728691831008,4.92,146.06,146.04,3.4241]
[1728691831403,11.8336,146.07,146.02,8.41]
[1728691832507,11.8336,146.07,146.03,3.54932]
[1728691835515,3.4237,146.06,146.03,3.54932]
[1728691836114,3.4237,146.06,146.03,0.12502]
[1728691836316,11.8337,146.06,146.03,0.12502]
[1728691836512,3.424,146.05,146.03,0.12502]
[1728691840319,3.4238,146.06,146.03,3.54942]
[1728691842617,3.4236,146.07,146.04,3.4241]
[1728691842913,8.41,146.05,146.03,0.12502]
[1728691843422,8.41,146.06,146.03,0.12502]
[1728691845520,3.4241,146.05,146.03,0.12502]
[1728691847525,3.4238,146.06,146.03,3.54942]
[1728691847921,4.86,146.08,146.03,11.95942]
[1728691848129,13.27,146.08,146.03,11.95942]
[1728691848524,3.4236,146.07,146.04,3.4242]
[1728691850127,8.41,146.08,146.04,3.4242]
[1728691850329,11.8334,146.08,146.04,3.4242]
[1728691853117,3.4235,146.07,146.04,3.4242]
[1728691853517,8.41,146.08,146.05,3.4239]
[1728691854528,11.8334,146.08,146.05,3.4239]
[1728691857835,3.4235,146.07,146.04,3.4241]
[1728691858930,3.4239,146.06,146.03,3.54932]
[1728691859240,8.41,146.05,146.03,0.12502]
[1728691859833,3.4242,146.04,146.03,0.12502]
[1728691860033,8.41,146.05,146.03,0.12502]
[1728691860535,3.4242,146.04,146.03,0.12502]
[1728691860937,11.8342,146.04,146.03,0.12502]
[1728691862132,3.4242,146.04,146.03,0.12502]
[1728691862332,13.27,146.07,146.03,0.12502]
[1728691862533,13.27,146.07,146.03,3.54932]
[1728691863429,3.4239,146.06,146.03,3.54932]
[1728691865134,4.86,146.07,146.03,0.12502]
[1728691865336,8.2836,146.07,146.04,3.4242]
[1728691866839,11.8338,146.06,146.03,0.12502]
[1728691869441,3.424,146.05,146.03,0.12502]
[1728691871448,3.4242,146.04,146.03,0.12502]
[1728691872839,11.8342,146.04,146.03,0.12502]
[1728691878562,11.8342,146.04,145.98,71.66679456]
[1728691878769,4.86,146.07,145.98,68.93979456]
[1728691878770,11.835,146.01,145.98,68.93979456]
[1728691879269,3.425,146.01,145.98,72.36539456]
[1728691880466,3.425,146.01,145.98,80.77539456]
[1728691880869,4.84,146.04,145.98,77.34979456]
[1728691881067,3.4248,146.02,145.99,11.8354]
[1728691881371,3.4248,146.02,145.98,68.93979456]
[1728691881372,13.27,146.05,146.0,8.41]
[1728691882373,3.4246,146.03,146.0,11.8351]
[1728691885478,3.4242,146.04,146.01,3.4249]
[1728691887675,3.4242,146.04,146.0,11.835]
[1728691888774,3.4242,146.04,146.01,3.4248]
[1728691889776,13.27,146.05,146.0,8.41]
[1728691889980,3.4245,146.03,146.0,11.835]
[1728691892782,3.4245,146.03,146.0,3.425]
[1728691897185,8.41,146.05,145.99,8.41]
[1728691897386,3.4242,146.04,146.01,3.4249]
[1728691897587,3.4242,146.04,145.99,8.41]
[1728691897987,3.4242,146.04,146.0,3.425]
[1728691898485,3.4244,146.03,146.0,3.425]
[1728691900683,8.41,146.05,145.99,3.4253]
[1728691900684,3.4247,146.02,145.99,3.4253]
[1728691900884,3.4247,146.02,145.99,11.8353]
[1728691901280,3.4245,146.03,146.0,3.4251]
[1728691904583,3.4243,146.04,146.01,3.4249]
[1728691909588,102.81244651,146.08,146.01,8.41]
[1728691909589,4.8,146.07,146.01,8.41]
[1728691909887,13.21,146.07,146.01,8.41]
[1728691910291,3.424,146.05,146.02,3.4245]
[1728691921200,3.4242,146.04,146.01,11.8348]
[1728691923396,8.41,146.06,146.01,8.41]
[1728691923597,102.81244651,146.08,146.03,8.41]
[1728691923794,111.22244651,146.08,146.04,8.41]
[1728691924405,3.4239,146.06,146.04,8.41]
[1728691926500,3.4239,146.06,146.03,11.8343]
[1728691929605,8.41,146.07,146.03,8.41]
[1728691929806,3.4245,146.03,146.0,4.7164]
[1728691930199,3.4245,146.03,146.0,1.2914]
[1728691933003,8.41,146.04,146.0,1.2914]
[1728691933301,8.41,146.03,146.0,1.2914]
[1728691934403,3.4249,146.01,146.0,1.2914]
[1728691935697,3.4249,146.01,145.98,13.1448]
[1728691938203,3.4251,146.0,145.98,9.7194]
[1728691938407,8.41,146.01,145.97,0.12502]
[1728691939497,8.41,145.99,145.97,0.12502]
[1728691940111,3.4256,145.98,145.97,0.12502]
[1728691943608,11.8356,145.98,145.97,0.12502]
[1728691944715,3.4256,145.98,145.97,0.12502]
[1728691946900,4.8,146.02,145.97,8.53502]
[1728691947101,4.8,146.02,145.98,8.41]
[1728691947515,3.4251,146.01,145.98,8.41]
[1728691947712,8.41,146.01,145.97,0.12502]
[1728691948518,3.4252,146.0,145.97,0.12502]
[1728691951400,3.4252,146.0,145.97,3.55082]
[1728691953012,3.4252,146.0,145.97,11.96082]
[1728691953321,13.21,146.04,145.99,11.8352]
[1728691954408,3.4247,146.02,145.99,11.8352]
[1728691954916,3.4247,146.02,145.99,8.41]
[1728691956409,3.4247,146.02,145.99,11.8353]
[1728691957211,3.4247,146.02,145.97,1.42132]
[1728691957212,3.4247,146.02,145.98,11.8355]
[1728691958520,3.4244,146.03,145.99,11.8351]
[1728691958714,3.4244,146.03,145.99,8.41]
[1728691959520,3.4244,146.03,146.0,3.4251]
[1728691959723,4.8,146.04,146.0,8.41]
[1728691959913,8.2243,146.04,146.01,3.4248]
[1728691960114,8.2243,146.04,146.0,8.41]
[1728691960520,8.2243,146.04,146.0,11.8351]
[1728691962310,4.8,146.04,146.0,8.41]
[1728691962506,4.8,146.04,146.01,3.4248]
[1728691963418,8.2242,146.04,146.01,3.4248]
[1728691963819,8.2242,146.04,146.0,11.8351]
[1728691964022,8.2242,146.04,146.0,8.41]
[1728691964331,13.21,146.04,145.99,13.21]
[1728691965212,4.8,146.08,146.01,8.41]
[1728691965425,8.41,146.08,146.02,8.41]
[1728691965815,3.4239,146.06,146.02,11.8346]
[1728691968325,3.4239,146.06,146.03,3.4244]
[1728691971127,3.4239,146.06,146.02,8.41]
[1728691971327,3.4239,146.06,146.02,11.8346]
[1728691972724,8.41,146.04,146.0,3.425]
[1728691973024,8.41,146.04,146.0,11.835]
[1728691973725,11.8343,146.04,146.0,11.835]
[1728691974928,11.8343,146.04,146.01,3.4249]
[1728691975323,3.4243,146.04,146.01,11.8349]
[1728691980632,3.4234,146.08,146.05,3.4239]
[1728691980831,0.12502,146.09,146.04,8.41]
[1728691981036,8.41,146.08,146.03,8.41]
[1728691981336,3.424,146.05,146.02,16.6345]
[1728691984734,8.41,146.06,146.02,4.8]
[1728691985131,4.8,146.07,146.0,11.8349]
[1728691985132,8.41,146.04,146.0,11.8349]
[1728691986433,3.4244,146.03,146.0,11.8349]
[1728691989135,8.41,146.04,145.98,1.3809]
[1728691989342,3.4249,146.01,145.98,9.6064]
[1728691989542,8.41,146.03,145.98,18.0164]
[1728691989843,3.4247,146.02,145.99,3.4253]
[1728691991344,3.4247,146.02,145.98,13.2164]
[1728691992949,3.4247,146.02,145.99,8.41]
[1728691993144,4.8,146.04,146.01,8.41]
[1728691993452,4.8,146.04,146.02,8.41]
[1728691993641,3.4241,146.05,146.02,8.41]
[1728691994044,13.21,146.07,146.02,8.41]
[1728691994955,0.12502,146.09,146.05,8.41]
[1728691995245,0.12502,146.09,146.06,8.41]
[1728691997160,0.12502,146.09,146.07,8.41]
[1728691997855,0.12502,146.09,146.08,3.4232]
[1728691998263,0.12502,146.09,146.07,11.8334]
[1728691999254,0.12502,146.09,146.05,2.7834]
[1728691999255,0.12502,146.09,146.06,11.8337]
[1728691999859,3.54802,146.09,146.06,8.41]
[1728692000063,3.54802,146.09,146.05,14.6173]
[1728692004061,0.12502,146.09,146.08,11.8332]
[1728692004369,0.12502,146.09,146.07,8.41]
[1728692004556,3.54802,146.09,146.06,11.8336]
[1728692004750,3.54802,146.09,146.05,11.1934]
[1728692005162,3.54802,146.09,146.06,8.41]
[1728692006458,3.54802,146.09,146.06,3.4237]
[1728692006757,3.54802,146.09,146.06,11.8337]
[1728692013563,3.54802,146.09,146.06,3.4237]
[1728692013765,3.54802,146.09,146.06,11.8337]
[1728692017060,0.12502,146.09,146.05,11.1934]
[1728692017362,0.12502,146.09,146.05,2.7834]
[1728692017563,0.12502,146.09,146.05,15.9934]
[1728692017765,3.4234,146.08,146.05,19.4173]
[1728692018359,0.12502,146.09,146.05,19.4173]
[1728692018667,3.54822,146.09,146.05,19.4173]
[1728692020062,3.4234,146.08,146.05,19.4173]
[1728692020260,3.4234,146.08,146.05,6.2073]
[1728692020463,3.424,146.05,146.0,4.88]
[1728692020666,8.41,146.06,146.01,4.88]
[1728692020968,8.41,146.06,146.01,13.29]
[1728692021865,0.12502,146.09,146.05,8.41]
[1728692022063,0.12502,146.09,146.06,8.41]
[1728692022568,0.12502,146.09,146.08,8.41]
[1728692023267,0.12502,146.09,146.07,8.41]
[1728692025268,0.12502,146.09,146.07,11.8334]
[1728692029168,0.12502,146.09,146.06,9.7337]
[1728692029366,3.54812,146.09,146.05,11.0529]
[1728692029964,0.12502,146.09,146.05,14.4768]
[1728692030173,3.4235,146.07,146.05,2.6429]
[1728692030669,3.54802,146.09,146.06,8.41]
[1728692030868,3.54802,146.09,146.05,11.0529]
[1728692030869,8.53502,146.09,146.05,11.0529]
[1728692031173,0.12502,146.09,146.07,11.8334]
[1728692031569,0.12502,146.09,146.07,3.4234]
[1728692034676,0.12502,146.09,146.06,8.41]
[1728692034874,0.12502,146.09,146.06,11.8336]
[1728692035476,0.12502,146.09,146.08,11.8332]
[1728692036970,3.4212,146.17,146.13,3.4219]
[1728692037171,8.41,146.18,146.1,4.88]
[1728692037365,8.41,146.16,146.12,8.41]
[1728692038375,8.41,146.16,146.1,4.88]
[1728692038573,8.53502,146.15,146.11,8.41]
[1728692039077,3.4219,146.14,146.11,8.41]
[1728692039272,8.53502,146.15,146.11,8.41]
[1728692039876,11.95682,146.15,146.11,11.8325]
[1728692040482,8.41,146.14,146.1,4.88]
[1728692040675,8.41,146.13,146.1,4.88]
[1728692040983,0.12502,146.15,146.12,8.41]
[1728692041173,0.12502,146.15,146.14,8.41]
[1728692041776,0.12502,146.15,146.14,11.8318]
[1728692041976,0.12502,146.21,146.14,13.61]
[1728692042174,0.12502,146.21,146.17,8.41]
[1728692042375,0.12502,146.21,146.14,5.2]
[1728692042376,8.41,146.19,146.14,5.2]
[1728692042575,8.41,146.19,146.16,8.41]
[1728692043084,3.4211,146.18,146.14,17.0316]
[1728692043274,0.12502,146.21,146.15,8.41]
[1728692043275,8.41,146.2,146.15,8.41]
[1728692043876,8.41,146.18,146.12,1.4057]
[1728692044075,8.41,146.18,146.13,8.41]
[1728692044475,3.4215,146.16,146.13,8.41]
[1728692044679,8.41,146.18,146.13,8.41]
[1728692045085,8.41,146.17,146.12,9.8157]
[1728692045285,5.32502,146.21,146.12,8.41]
[1728692045584,8.41,146.16,146.11,6.4918]
[1728692045771,3.422,146.14,146.11,6.4918]
[1728692046180,0.7931,146.2,146.13,8.41]
[1728692046485,8.41,146.19,146.13,8.41]
[1728692046886,0.12502,146.21,146.16,8.41]
[1728692047078,8.41,146.19,146.15,8.41]
[1728692047385,8.53502,146.21,146.15,8.41]
[1728692047976,8.41,146.19,146.12,1.4027]
[1728692048278,8.41,146.18,146.13,8.41]
[1728692048981,3.4213,146.17,146.13,8.41]
[1728692049283,3.4213,146.17,146.12,4.8248]
[1728692049284,8.41,146.16,146.12,9.8127]
[1728692049473,3.4218,146.15,146.12,9.8127]
[1728692049878,8.41,146.15,146.11,1.2918]
[1728692050077,8.41,146.16,146.12,8.41]
[1728692050478,8.41,146.15,146.11,1.2918]
[1728692050681,3.4221,146.13,146.11,1.2918]
[1728692051285,5.2,146.17,146.11,1.2918]
[1728692051286,8.41,146.14,146.11,1.2918]
[1728692051494,3.4225,146.12,146.09,8.53502]
[1728692051683,3.4225,146.12,146.09,0.12502]
[1728692052175,8.41,146.14,146.09,0.12502]
[1728692052378,3.4227,146.11,146.09,0.12502]
[1728692052585,8.41,146.12,146.09,0.12502]
[1728692053204,3.4228,146.1,146.09,0.12502]
[1728692055785,8.41,146.15,146.09,0.12502]
[1728692056082,5.2,146.17,146.11,8.41]
[1728692056284,17.11493698,146.17,146.11,8.41]
[1728692056485,13.61,146.17,146.11,8.41]
[1728692056990,3.4225,146.12,146.1,8.41]
[1728692059685,3.4225,146.11,146.1,8.41]
[1728692062189,8.41,146.13,146.09,8.53502]
[1728692062892,3.4228,146.1,146.09,8.53502]
[1728692064593,8.63613218,146.17,146.09,8.53502]
[1728692064594,3.4217,146.15,146.09,8.53502]
[1728692064789,1.3039,146.2,146.12,8.41]
[1728692064986,8.41,146.17,146.12,8.41]
[1728692066492,3.4221,146.13,146.12,8.41]
[1728692067391,3.4221,146.13,146.11,8.41]
[1728692070298,3.4223,146.13,146.1,8.41]
[1728692070991,3.4223,146.13,146.11,8.41]
[1728692071192,3.4215,146.16,146.12,11.8322]
[1728692071392,8.41,146.18,146.09,0.12502]
[1728692071699,8.41,146.17,146.12,8.41]
[1728692071886,8.41,146.16,146.11,8.41]
[1728692073401,3.4222,146.13,146.11,8.41]
[1728692074495,3.4222,146.13,146.12,8.41]
[1728692079306,3.4225,146.12,146.1,8.41]
[1728692079504,8.41,146.16,146.1,8.41]
[1728692079705,5.54,146.15,146.1,8.41]
[1728692080497,3.4225,146.12,146.1,8.41]
[1728692080908,8.41,146.14,146.1,8.41]
[1728692081103,3.4225,146.11,146.1,8.41]
[1728692081600,3.42939407,146.17,146.1,8.41]
[1728692081794,8.41,146.17,146.13,8.41]
[1728692082000,11.91446529,146.17,146.11,8.41]
[1728692082402,3.50446529,146.17,146.14,8.41]
[1728692082609,5.54,146.18,146.14,8.41]
[1728692082908,3.4214,146.16,146.14,8.41]
[1728692083108,3.40930595,146.17,146.14,8.41]
[1728692083305,5.54,146.18,146.14,8.41]
[1728692083306,3.4215,146.16,146.14,8.41]
[1728692083508,5.54,146.18,146.14,8.41]
[1728692084913,3.4218,146.15,146.12,8.41]
[1728692085102,8.41,146.17,146.12,8.41]
[1728692085304,95.10243193,146.2,146.13,8.41]
[1728692085305,5.54,146.19,146.13,8.41]
[1728692085505,8.41,146.17,146.12,8.41]
[1728692086210,3.4215,146.16,146.12,8.41]
[1728692086409,8.41,146.17,146.12,8.41]
[1728692087507,8.41,146.17,146.13,8.41]
[1728692088212,3.4218,146.15,146.13,8.41]
[1728692093015,3.4223,146.13,146.11,1.3496]
[1728692093210,3.4223,146.13,146.11,9.7596]
[1728692095216,8.41,146.16,146.1,8.3147]
[1728692095217,3.4225,146.11,146.1,15.351]
[1728692095514,3.4225,146.11,146.1,9.811]
[1728692095707,3.4225,146.12,146.1,9.811]
[1728692096311,8.41,146.14,146.1,9.811]
[1728692097619,3.4225,146.12,146.1,9.811]
[1728692099915,8.41,146.14,146.1,9.811]
[1728692100620,8.41,146.12,146.09,0.12502]
[1728692101523,3.4228,146.1,146.09,0.12502]
[1728692102217,11.8328,146.1,146.09,0.12502]
[1728692103923,11.8328,146.1,146.03,8.53502]
[1728692103924,3.4239,146.05,146.03,8.53502]
[1728692104711,5.62,146.07,146.03,8.53502]
[1728692104916,3.4238,146.06,146.04,8.41]
[1728692105612,5.62,146.07,146.03,0.12502]
[1728692105814,3.4239,146.05,146.03,8.53502]
[1728692106212,14.03,146.07,146.03,8.53502]
[1728692106413,3.4242,146.04,146.03,0.12502]
[1728692106614,11.8342,146.04,146.03,0.12502]
[1728692110430,3.4242,146.04,146.03,0.12502]
[1728692111232,3.424,146.05,146.03,0.12502]
[1728692111431,8.41,146.1,146.04,8.41]
[1728692111635,5.62,146.09,146.04,8.41]
[1728692111929,3.4237,146.07,146.04,8.41]
[1728692112130,5.62,146.09,146.04,8.41]
[1728692112429,14.03,146.09,146.04,8.41]
[1728692113428,14.03,146.09,146.03,8.53502]
[1728692113429,3.4239,146.06,146.03,8.53502]
[1728692119437,3.4239,146.06,146.03,11.95942]
[1728692120331,3.4235,146.07,146.03,11.95942]
[1728692120532,335.12502,146.15,146.06,11.8336]
[1728692120737,335.12502,146.15,146.03,0.12502]
[1728692120738,6.75864848,146.13,146.07,8.41]
[1728692120931,8.41,146.08,146.04,1.3982]
[1728692121133,8.41,146.06,146.04,1.3982]
[1728692121336,8.41,146.06,146.03,0.12502]
[1728692121337,3.424,146.05,146.03,0.12502]
[1728692121637,8.41,146.06,146.03,0.12502]
[1728692122343,3.424,146.05,146.03,0.12502]
[1728692124136,11.8342,146.04,146.03,0.12502]
[1728692124444,3.4242,146.04,146.03,0.12502]
[1728692134247,11.8342,146.04,146.03,0.12502]
[1728692148857,3.4254,145.99,145.97,0.12502]
[1728692149056,8.41,146.0,145.97,0.12502]
[1728692149261,8.41,146.01,145.97,0.12502]
[1728692149660,8.41,146.01,145.97,1.42192]
[1728692149861,11.835,146.01,145.97,4.84772]
[1728692150262,8.41,146.01,145.97,1.42192]
[1728692151165,3.4253,146.0,145.97,1.42192]
[1728692164476,3.4254,145.99,145.97,1.42192]
[1728692167174,3.4244,146.03,145.98,11.8355]
[1728692167378,3.62113066,146.09,146.02,8.41]
[1728692167682,13.99,146.08,146.04,8.41]
[1728692167870,5.58,146.08,146.05,8.41]
[1728692168272,0.12502,146.09,146.07,8.41]
[1728692170183,3.54812,146.09,146.07,8.41]
[1728692171669,0.12502,146.09,146.07,8.41]
[1728692172567,0.12502,146.09,146.07,9.722]
[1728692172973,0.12502,146.09,146.07,1.312]
[1728692174382,3.54812,146.09,146.07,1.312]
[1728692175475,0.12502,146.15,146.08,8.41]
[1728692175673,13.85,146.13,146.08,8.41]
[1728692176572,8.41,146.12,146.07,9.722]
[1728692177577,3.4226,146.11,146.09,8.41]
[1728692180176,3.4226,146.11,146.07,13.1455]
[1728692181474,5.56502,146.15,146.07,1.312]
[1728692181475,11.833,146.09,146.07,1.312]
[1728692183787,3.423,146.09,146.07,1.312]
[1728692184288,3.4228,146.1,146.07,9.722]
[1728692186081,8.41,146.09,146.04,1.3609]
[1728692186289,8.41,146.09,146.05,8.41]
[1728692186790,3.4233,146.08,146.06,8.41]
[1728692189190,3.4233,146.08,146.04,10.225]
[1728692189382,8.41,146.1,146.05,8.41]
[1728692189688,3.4235,146.07,146.05,8.41]
[1728692190588,5.44,146.11,146.06,8.41]
[1728692190795,3.4233,146.08,146.06,8.41]
[1728692193186,3.4232,146.09,146.06,8.41]
[1728692196698,3.4234,146.08,146.06,8.41]
[1728692197388,8.41,146.07,146.03,1.43262]
[1728692197789,8.41,146.06,146.03,0.12502]
[1728692198299,3.4239,146.05,146.03,0.12502]
[1728692198495,8.41,146.06,146.03,0.12502]
[1728692198996,11.8342,146.04,146.03,0.12502]
[1728692200894,8.41,146.04,145.97,0.12502]
[1728692201084,8.41,146.0,145.97,0.12502]
[1728692201893,8.41,145.99,145.97,0.12502]
[1728692202798,3.4256,145.98,145.97,0.12502]
[1728692202996,11.8356,145.98,145.97,0.12502]
[1728692203994,3.4256,145.98,145.97,0.12502]
[1728692217412,11.8356,145.98,145.97,0.12502]
[1728692225035,8.41,145.98,145.91,0.12502]
[1728692225227,11.837,145.92,145.91,0.12502]
[1728692225422,3.427,145.92,145.91,0.12502]
[1728692225633,11.837,145.92,145.91,0.12502]
[1728692230128,94.90184692,145.98,145.91,8.53502]
[1728692230129,8.41,145.96,145.91,8.53502]
[1728692230427,94.51974692,145.98,145.92,8.41]
[1728692230634,3.426,145.97,145.94,8.41]
[1728692230835,94.51974692,145.98,145.95,8.41]
[1728692231133,97.94554692,145.98,145.95,8.41]
[1728692232536,5.26,145.99,145.95,8.41]
[1728692232735,8.6854,145.99,145.95,8.41]
[1728692233233,5.26,145.99,145.96,11.836]
[1728692233438,3.4251,146.0,145.96,11.836]
[1728692233738,3.4251,146.0,145.96,8.41]
[1728692238038,11.8351,146.0,145.96,8.41]
[1728692238239,3.4254,145.99,145.96,8.41]
[1728692238539,11.8354,145.99,145.95,11.8362]
[1728692245134,3.4256,145.98,145.95,11.8362]
[1728692249743,8.41,146.0,145.95,8.41]
[1728692249940,8.41,145.99,145.94,11.8364]
[1728692250747,8.41,145.99,145.94,8.41]
[1728692251546,3.4259,145.97,145.94,8.41]
[1728692251942,8.41,146.0,145.96,8.41]
[1728692252142,0.12502,146.03,145.99,8.41]
[1728692252345,0.12502,146.03,146.0,8.41]
[1728692252845,0.12502,146.03,146.01,8.41]
[1728692253344,3.4247,146.02,145.98,12.3906]
[1728692253550,8.41,146.02,145.98,3.9806]
[1728692253935,3.425,146.01,145.98,3.9806]
[1728692254752,8.41,146.02,145.98,3.9806]
[1728692254753,3.4252,146.0,145.98,3.9806]
[1728692255251,8.41,146.02,145.98,12.3906]
[1728692255452,3.4247,146.02,145.99,8.41]
[1728692255647,0.12502,146.03,146.0,8.41]
[1728692256045,0.12502,146.03,145.99,8.41]
[1728692257144,3.4248,146.02,145.99,8.41]
[1728692260356,3.4249,146.01,145.99,8.41]
[1728692262853,0.12502,146.03,145.99,8.41]
[1728692263148,3.4247,146.02,145.99,11.8354]
[1728692265155,0.12502,146.03,145.99,8.41]
[1728692265358,8.41,146.0,145.98,2.6604]
[1728692266560,3.4254,145.99,145.98,2.6604]
[1728692267064,8.41,146.0,145.95,11.8362]
[1728692267657,3.4254,145.99,145.95,11.8362]
[1728692268160,8.41,145.99,145.94,9.887]
[1728692269461,3.4259,145.97,145.94,9.887]
[1728692269658,8.41,145.99,145.94,9.887]